lending/lending_fUSD_20250130
["ID","MTS","AMOUNT","RATE_DAILY","PERIOD"]
[350987210,1738267852285,-590.72,0.00019315,3]
[350987211,1738267852296,-500.0,0.00019315,3]
[350987212,1738267852305,-500.0,0.00019315,3]
[350987213,1738267852314,-500.0,0.00019315,3]
[350987214,1738267852324,-500.0,0.00019315,3]
[350987215,1738267852334,-500.0,0.00019315,3]
[350987216,1738267852344,-826.04,0.00019315,3]
[350987217,1738267852355,-500.0,0.00019315,3]
[350987218,1738267852366,-500.0,0.00019315,3]
[350987219,1738267852376,-500.0,0.00019315,3]
[350987220,1738267852385,-1147.91,0.00019315,3]
[350987221,1738267852396,-500.0,0.00019315,3]
[350987222,1738267852405,-500.0,0.00019315,3]
[350987223,1738267852416,-500.0,0.00019315,3]
[350987224,1738267852425,-500.0,0.00019315,3]
[350987225,1738267852435,-658.37,0.00019315,3]
[350987226,1738267852445,-826.2,0.00019315,3]
[350987227,1738267852455,-500.0,0.00019315,3]
[350987228,1738267852464,-1338.93,0.00019315,3]
[350987229,1738267852475,-500.0,0.00019315,3]
[350987230,1738267852485,-500.0,0.00019315,3]
[350987231,1738267852495,-500.0,0.00019315,3]
[350987232,1738267852504,-500.0,0.00019315,3]
[350987233,1738267852514,-683.11,0.00019315,3]
[350987234,1738267852524,-814.88,0.00019315,3]
[350987235,1738267852534,-340.28935782,0.00019315,3]
[350987236,1738267852544,-1204.43,0.00019315,3]
[350987237,1738267852554,-500.0,0.00019315,3]
[350987238,1738267852564,-679.48,0.00019315,3]
[350987239,1738267852573,-500.0,0.00019315,3]
[350987240,1738267852583,-523.39,0.00019315,3]
[350987241,1738267852593,-500.0,0.00019315,3]
[350987242,1738267852603,-500.0,0.00019315,3]
[350987243,1738267852613,-998.15,0.00019315,3]
[350987244,1738267852623,-500.0,0.00019315,3]
[350987245,1738267852633,-931.11,0.00019315,3]
[350987246,1738267852643,-1761.39,0.00019315,3]
[350987247,1738267852652,-1201.3,0.00019315,3]
[350987248,1738267852662,-177.22257972,0.00019315,3]
[350987249,1738267852671,-500.0,0.00019315,3]
[350987250,1738267852680,-500.0,0.00019315,3]
[350987251,1738267852690,-500.0,0.00019315,3]
[350987252,1738267852699,-500.0,0.00019315,3]
[350987253,1738267852709,-994.05,0.00019315,3]
[350987254,1738267852719,-500.0,0.00019315,3]
[350987255,1738267852728,-916.36,0.00019315,3]
[350987256,1738267852742,-1083.3,0.00019315,3]
[350987257,1738267852752,-500.0,0.00019315,3]
[350987258,1738267852762,-1298.75,0.00019315,3]
[350987259,1738267852772,-500.0,0.00019315,3]
[350987260,1738267852783,-500.0,0.00019315,3]
[350987261,1738267852793,-500.0,0.00019315,3]
[350987262,1738267852803,-500.0,0.00019315,3]
[350987263,1738267852812,-500.0,0.00019315,3]
[350987264,1738267852824,-500.0,0.00019315,3]
[350987265,1738267852835,-2936.68,0.00019315,3]
[350987266,1738267852845,-1019.39,0.00019315,3]
[350987267,1738267852855,-500.0,0.00019315,3]
[350987268,1738267852865,-500.0,0.00019315,3]
[350987269,1738267852875,-500.0,0.00019315,3]
[350987270,1738267852885,-500.0,0.00019315,3]
[350987271,1738267852895,-500.0,0.00019315,3]
[350987272,1738267852904,-500.0,0.00019315,3]
[350987273,1738267852913,-600.72404222,0.00019315,3]
[350987274,1738267852922,-500.0,0.00019315,3]
[350987275,1738267852932,-500.0,0.00019315,3]
[350987276,1738267852942,-500.0,0.00019315,3]
[350987277,1738267852951,-500.0,0.00019315,3]
[350987278,1738267852961,-500.61220485,0.00019315,3]
[350987279,1738267852972,-1106.26,0.00019315,3]
[350987280,1738267852982,-1416.7,0.00019315,3]
[350987281,1738267852991,-1739.26,0.00019315,3]
[350987282,1738267853002,-722.99,0.00019315,3]
[350987283,1738267853012,-1250.82,0.00019315,3]
[350987284,1738267853022,-500.0,0.00019315,3]
[350987285,1738267853032,-500.0,0.00019315,3]
[350987286,1738267853042,-790.58,0.00019315,3]
[350987287,1738267853051,-500.0,0.00019315,3]
[350987288,1738267853061,-517.04676168,0.00019315,3]
[350987289,1738267853071,-500.0,0.00019315,3]
[350987290,1738267853081,-2018.27,0.00019315,3]
[350987291,1738267853091,-500.0,0.00019315,3]
[350987292,1738267853101,-500.0,0.00019315,3]
[350987293,1738267853195,-944.3,0.00019315,3]
[350987294,1738267853206,-500.0,0.00019315,3]
[350987295,1738267853215,-500.0,0.00019315,3]
[350987296,1738267853225,-500.0,0.00019315,3]
[350987297,1738267853234,-1174.97,0.00019315,3]
[350987298,1738267853243,-719.14,0.00019315,3]
[350987299,1738267853252,-668.81,0.00019315,3]
[350987300,1738267853262,-500.0,0.00019315,3]
[350987301,1738267853271,-1883.96,0.00019315,3]
[350987302,1738267853281,-500.0,0.00019315,3]
[350987303,1738267853290,-500.0,0.00019315,3]
[350987304,1738267853299,-500.0,0.00019315,3]
[350987305,1738267853307,-500.0,0.00019315,3]
[350987306,1738267853317,-522.15,0.00019315,3]
[350987307,1738267853326,-500.0,0.00019315,3]
[350987308,1738267853335,-500.0,0.00019315,3]
[350987309,1738267853344,-1192.28,0.00019315,3]
[350987310,1738267853354,-500.0,0.00019315,3]
[350987311,1738267853363,-603.83,0.00019315,3]
[350987312,1738267853377,-718.24,0.00019315,3]
[350987313,1738267853390,-500.0,0.00019315,3]
[350987314,1738267853409,-429.88396413,0.00019315,3]
[350987315,1738267853434,-1218.05,0.00019315,3]
[350987316,1738267853448,-500.0,0.00019315,3]
[350987317,1738267853457,-500.0,0.00019315,3]
[350987318,1738267853466,-1717.85,0.00019315,3]
[350987319,1738267853476,-1116.72,0.00019315,3]
[350987320,1738267853485,-500.0,0.00019315,3]
[350987321,1738267853495,-1546.18,0.00019315,3]
[350987322,1738267853503,-500.0,0.00019315,3]
[350987323,1738267853513,-738.41,0.00019315,3]
[350987324,1738267853523,-500.0,0.00019315,3]
[350987325,1738267853532,-500.0,0.00019315,3]
[350987326,1738267853541,-1087.32,0.00019315,3]
[350987327,1738267853551,-550.87,0.00019315,3]
[350987328,1738267853560,-500.0,0.00019315,3]
[350987329,1738267853572,-500.0,0.00019315,3]
[350987330,1738267853581,-500.0,0.00019315,3]
[350987331,1738267853590,-500.0,0.00019315,3]
[350987332,1738267853599,-1258.35,0.00019315,3]
[350987333,1738267853609,-500.0,0.00019315,3]
[350987334,1738267853618,-1090.66,0.00019315,3]
[350987335,1738267853627,-523.71,0.00019315,3]
[350987336,1738267853636,-500.0,0.00019315,3]
[350987337,1738267853646,-500.0,0.00019315,3]
[350987338,1738267853656,-500.0,0.00019315,3]
[350987339,1738267853666,-1158.18,0.00019315,3]
[350987340,1738267853675,-500.0,0.00019315,3]
[350987341,1738267853684,-500.0,0.00019315,3]
[350987342,1738267853694,-500.0,0.00019315,3]
[350987343,1738267853703,-500.0,0.00019315,3]
[350987344,1738267853712,-237.98607426,0.00019315,3]
[350987345,1738267853722,-500.0,0.00019315,3]
[350987346,1738267853732,-611.56578712,0.00019315,3]
[350987347,1738267853743,-833.86,0.00019315,3]
[350987348,1738267853753,-977.44,0.00019315,3]
[350987349,1738267853763,-566.83,0.00019315,3]
[350987350,1738267853773,-1269.51,0.00019315,3]
[350987351,1738267853783,-1299.97,0.00019315,3]
[350987352,1738267853794,-551.21,0.00019315,3]
[350987353,1738267853804,-500.0,0.00019315,3]
[350987354,1738267853814,-500.0,0.00019315,3]
[350987355,1738267853825,-500.0,0.00019315,3]
[350987356,1738267853835,-500.0,0.00019315,3]
[350987357,1738267853845,-3103.91,0.00019315,3]
[350987358,1738267853855,-1983.54,0.00019315,3]
[350987359,1738267853866,-500.0,0.00019315,3]
[350987360,1738267853876,-500.0,0.00019315,3]
[350987361,1738267853888,-504.35454601,0.00019315,3]
[350987362,1738267853898,-500.0,0.00019315,3]
[350987363,1738267853908,-500.0,0.00019315,3]
[350987364,1738267853918,-564.74,0.00019315,3]
[350987365,1738267853927,-1203.76,0.00019315,3]
[350987366,1738267853937,-1585.17,0.00019315,3]
[350987367,1738267853946,-1054.61,0.00019315,3]
[350987368,1738267853956,-500.0,0.00019315,3]
[350987369,1738267853967,-500.0,0.00019315,3]
[350987370,1738267853978,-500.0,0.00019315,3]
[350987371,1738267853988,-500.0,0.00019315,3]
[350987372,1738267853997,-291.91891906,0.00019315,3]
[350987373,1738267854009,-500.0,0.00019315,3]
[350987374,1738267854020,-500.0,0.00019315,3]
[350987375,1738267854029,-1501.75,0.00019315,3]
[350987376,1738267854039,-2212.2,0.00019315,3]
[350987377,1738267854048,-500.0,0.00019315,3]
[350987378,1738267854059,-500.0,0.00019315,3]
[350987379,1738267854068,-1718.72,0.00019315,3]
[350987380,1738267854078,-500.0,0.00019315,3]
[350987381,1738267854087,-529.21,0.00019315,3]
[350987382,1738267854096,-500.0,0.00019315,3]
[350987383,1738267854106,-1286.81,0.00019315,3]
[350987384,1738267854116,-500.0,0.00019315,3]
[350987385,1738267854126,-500.0,0.00019315,3]
[350987386,1738267854136,-500.0,0.00019315,3]
[350987387,1738267854146,-519.30281039,0.00019315,3]
[350987388,1738267854155,-500.0,0.00019315,3]
[350987389,1738267854164,-884.04,0.00019315,3]
[350987390,1738267854174,-500.0,0.00019315,3]
[350987391,1738267854183,-3338.71,0.00019315,3]
[350987392,1738267854192,-500.0,0.00019315,3]
[350987393,1738267854202,-500.0,0.00019315,3]
[350987394,1738267854211,-500.0,0.00019315,3]
[350987395,1738267854221,-1954.65,0.00019315,3]
[350987396,1738267854230,-2036.78,0.00019315,3]
[350987397,1738267854239,-500.0,0.00019315,3]
[350987398,1738267854249,-500.0,0.00019315,3]
[350987399,1738267854258,-500.0,0.00019315,3]
[350987400,1738267854267,-500.0,0.00019315,3]
[350987401,1738267854276,-500.0,0.00019315,3]
[350987402,1738267854285,-500.0,0.00019315,3]
[350987403,1738267854295,-500.0,0.00019315,3]
[350987404,1738267854304,-674.03,0.00019315,3]
[350987405,1738267854314,-500.0,0.00019315,3]
[350987406,1738267854325,-535.93,0.00019315,3]
[350987407,1738267854335,-1757.65,0.00019315,3]
[350987408,1738267854344,-852.95,0.00019315,3]
[350987409,1738267854353,-1509.18,0.00019315,3]
[350987410,1738267854363,-500.0,0.00019315,3]
[350987411,1738267854373,-1321.13,0.00019315,3]
[350987412,1738267854382,-500.0,0.00019315,3]
[350987413,1738267854391,-500.0,0.00019315,3]
[350987414,1738267854401,-629.66557638,0.00019315,3]
[350987415,1738267854411,-500.0,0.00019315,3]
[350987416,1738267854421,-507.58825112,0.00019315,3]
[350987417,1738267854430,-500.0,0.00019315,3]
[350987418,1738267854440,-1611.81,0.00019315,3]
[350987419,1738267854450,-651.46,0.00019315,3]
[350987420,1738267854459,-500.0,0.00019315,3]
[350987421,1738267854470,-500.0,0.00019315,3]
[350987422,1738267854479,-500.0,0.00019315,3]
[350987423,1738267854489,-500.0,0.00019315,3]
[350987424,1738267854499,-8517.42,0.00019315,3]
[350987425,1738267854509,-500.0,0.00019315,3]
[350987426,1738267854519,-467.9156987,0.00019315,3]
[350987427,1738267854529,-2034.5,0.00019315,3]
[350987428,1738267854539,-500.0,0.00019315,3]
[350987429,1738267854549,-519.84985066,0.00019315,3]
[350987430,1738267854558,-1117.16,0.00019315,3]
[350987431,1738267854569,-500.0,0.00019315,3]
[350987432,1738267854578,-658.06,0.00019315,3]
[350987433,1738267854588,-848.85,0.00019315,3]
[350987434,1738267854598,-500.0,0.00019315,2]
[350987435,1738267854608,-500.0,0.00019315,3]
[350987436,1738267854618,-1525.79,0.00019315,3]
[350987437,1738267854630,-500.0,0.00019315,3]
[350987438,1738267854640,-500.0,0.00019315,3]
[350987439,1738267854650,-2390.12,0.00019315,3]
[350987440,1738267854660,-500.0,0.00019315,3]
[350987441,1738267854671,-706.41,0.00019315,3]
[350987442,1738267854681,-1112.78,0.00019315,3]
[350987443,1738267854691,-500.0,0.00019315,3]
[350987444,1738267854700,-630.28,0.00019315,3]
[350987445,1738267854710,-500.0,0.00019315,3]
[350987446,1738267854720,-912.99,0.00019315,3]
[350987447,1738267854730,-1365.08,0.00019315,3]
[350987448,1738267854744,-500.0,0.00019315,3]
[350987449,1738267854755,-1527.94,0.00019315,3]
[350987450,1738267854766,-600.18,0.00019315,3]
[350987451,1738267854775,-2138.82,0.00019315,3]
[350987452,1738267854787,-500.0,0.00019315,3]
[350987453,1738267854798,-3179.53,0.00019315,3]
[350987454,1738267854807,-1585.82,0.00019315,3]
[350987455,1738267854817,-3171.58,0.00019315,3]
[350987456,1738267854827,-500.0,0.00019315,3]
[350987457,1738267854836,-500.0,0.00019315,3]
[350987458,1738267854846,-500.0,0.00019315,3]
[350987459,1738267854856,-1988.12,0.00019315,3]
[350987460,1738267854867,-1003.68,0.00019315,3]
[350987461,1738267854876,-502.73252386,0.00019315,3]
[350987462,1738267854885,-500.0,0.00019315,3]
[350987463,1738267854896,-500.0,0.00019315,3]
[350987464,1738267854907,-1825.53,0.00019315,3]
[350987465,1738267854916,-1241.69,0.00019315,3]
[350987466,1738267854926,-1319.69,0.00019315,3]
[350987467,1738267854936,-500.0,0.00019315,3]
[350987468,1738267854946,-2288.32,0.00019315,3]
[350987469,1738267854955,-500.0,0.00019315,3]
[350987470,1738267854964,-2806.12,0.00019315,3]
[350987471,1738267854975,-500.0,0.00019315,3]
[350987472,1738267854985,-2521.69,0.00019315,3]
[350987473,1738267854995,-500.0,0.00019315,3]
[350987474,1738267855006,-500.0,0.00019315,3]
[350987475,1738267855017,-500.0,0.00019315,3]
[350987476,1738267855027,-500.0,0.00019315,3]
[350987477,1738267855038,-246.33633264,0.00019315,3]
[350987478,1738267855048,-500.0,0.00019315,3]
[350987479,1738267855058,-500.0,0.00019315,3]
[350987480,1738267855068,-2192.24,0.00019315,3]
[350987481,1738267855078,-150.0,0.00019315,3]
[350987482,1738267855088,-1168.41,0.00019315,3]
[350987483,1738267855099,-1705.9,0.00019315,3]
[350987484,1738267855109,-2651.96,0.00019315,3]
[350987485,1738267855119,-500.0,0.00019315,3]
[350987486,1738267855130,-500.0,0.00019315,3]
[350987487,1738267855140,-848.52,0.00019315,3]
[350987488,1738267855151,-989.34,0.00019315,3]
[350987489,1738267855161,-503.54487273,0.00019315,3]
[350987490,1738267855172,-500.0,0.00019315,3]
[350987491,1738267855182,-500.0,0.00019315,3]
[350987492,1738267855191,-500.0,0.00019315,3]
[350987493,1738267855201,-1840.59,0.00019315,3]
[350987494,1738267855211,-1397.33,0.00019315,3]
[350987495,1738267855222,-2507.15,0.00019315,3]
[350987496,1738267855231,-500.0,0.00019315,3]
[350987497,1738267855241,-500.0,0.00019315,3]
[350987498,1738267855251,-2885.37,0.00019315,3]
[350987499,1738267855261,-568.3,0.00019315,3]
[350987500,1738267855271,-500.0,0.00019315,3]
[350987501,1738267855280,-2352.31,0.00019315,3]
[350987502,1738267855290,-343.40103213,0.00019315,3]
[350987503,1738267855299,-4139.65,0.00019315,3]
[350987504,1738267855309,-500.0,0.00019315,3]
[350987505,1738267855319,-1637.38,0.00019315,3]
[350987506,1738267855329,-500.0,0.00019315,3]
[350987507,1738267855340,-1257.37,0.00019315,3]
[350987508,1738267855349,-500.0,0.00019315,3]
[350987509,1738267855359,-1344.67,0.00019315,3]
[350987510,1738267855369,-1800.09,0.00019315,3]
[350987511,1738267855380,-500.0,0.00019315,3]
[350987512,1738267855390,-500.0,0.00019315,3]
[350987513,1738267855400,-1213.96,0.00019315,3]
[350987514,1738267855411,-940.51,0.00019315,3]
[350987515,1738267855421,-203.61003568,0.00019315,3]
[350987516,1738267855431,-500.0,0.00019315,3]
[350987517,1738267855441,-500.0,0.00019315,3]
[350987518,1738267855451,-500.0,0.00019315,3]
[350987519,1738267855461,-1122.01,0.00019315,3]
[350987520,1738267855471,-905.63,0.00019315,3]
[350987521,1738267855481,-653.69,0.00019315,3]
[350987522,1738267855491,-500.0,0.00019315,3]
[350987523,1738267855501,-500.0,0.00019315,3]
[350987524,1738267855510,-1459.1,0.00019315,3]
[350987525,1738267855521,-8663.05,0.00019315,3]
[350987526,1738267855531,-5446.53,0.00019315,3]
[350987527,1738267855542,-1744.44,0.00019315,3]
[350987528,1738267855552,-2389.73,0.00019315,3]
[350987529,1738267855562,-500.0,0.00019315,3]
[350987530,1738267855573,-1613.09,0.00019315,2]
[350987531,1738267855584,-500.0,0.00019315,3]
[350987532,1738267855593,-500.0,0.00019315,3]
[350987533,1738267855604,-589.31,0.00019315,3]
[350987534,1738267855613,-2026.89,0.00019315,3]
[350987535,1738267855623,-3103.7,0.00019315,3]
[350987536,1738267855633,-805.73,0.00019315,3]
[350987537,1738267855643,-500.0,0.00019315,3]
[350987538,1738267855653,-500.0,0.00019315,3]
[350987539,1738267855664,-811.11,0.00019315,3]
[350987540,1738267855674,-500.0,0.00019315,3]
[350987541,1738267855685,-517.32595885,0.00019315,3]
[350987542,1738267855695,-500.0,0.00019315,3]
[350987543,1738267855705,-500.0,0.00019315,3]
[350987544,1738267855715,-5599.02,0.00019315,3]
[350987545,1738267855726,-1291.83,0.00019315,3]
[350987546,1738267855736,-3421.98,0.00019315,3]
[350987547,1738267855751,-932.67,0.00019315,3]
[350987548,1738267855761,-3773.52,0.00019315,3]
[350987549,1738267855770,-755.54,0.00019315,3]
[350987550,1738267855780,-350.71861211,0.00019315,3]
[350987551,1738267855791,-955.85,0.00019315,3]
[350987552,1738267855801,-3444.92,0.00019315,3]
[350987553,1738267855811,-1451.12,0.00019315,3]
[350987554,1738267855822,-1525.08,0.00019315,3]
[350987555,1738267855831,-781.95,0.00019315,3]
[350987556,1738267855841,-500.0,0.00019315,3]
[350987557,1738267855851,-2236.36,0.00019315,3]
[350987558,1738267855861,-976.82,0.00019315,3]
[350987559,1738267855871,-3069.68,0.00019315,3]
[350987560,1738267855882,-500.0,0.00019315,3]
[350987561,1738267855892,-1076.32,0.00019315,3]
[350987562,1738267855902,-500.0,0.00019315,3]
[350987563,1738267855912,-3827.98,0.00019315,3]
[350987564,1738267855922,-1100.06,0.00019315,3]
[350987565,1738267855932,-500.0,0.00019315,3]
[350987566,1738267855943,-1923.15,0.00019315,3]
[350987567,1738267855953,-500.0,0.00019315,3]
[350987568,1738267855963,-3014.3,0.00019315,3]
[350987569,1738267855973,-1026.66,0.00019315,3]
[350987570,1738267855983,-500.0,0.00019315,3]
[350987571,1738267855993,-353.00941554,0.00019315,3]
[350987572,1738267856004,-500.0,0.00019315,3]
[350987573,1738267856015,-628.39,0.00019315,3]
[350987574,1738267856024,-500.0,0.00019315,3]
[350987575,1738267856034,-500.0,0.00019315,3]
[350987576,1738267856045,-500.0,0.00019315,3]
[350987577,1738267856055,-500.0,0.00019315,3]
[350987578,1738267856064,-500.0,0.00019315,3]
[350987579,1738267856074,-4309.19,0.00019315,3]
[350987580,1738267856085,-4510.07,0.00019315,3]
[350987581,1738267856096,-500.0,0.00019315,3]
[350987582,1738267856106,-500.0,0.00019315,3]
[350987583,1738267856117,-500.0,0.00019315,3]
[350987584,1738267856128,-890.21,0.00019315,3]
[350987585,1738267856139,-5659.85,0.00019315,3]
[350987586,1738267856150,-3615.81,0.00019315,3]
[350987587,1738267856160,-500.0,0.00019315,3]
[350987588,1738267856169,-586.67,0.00019315,3]
[350987589,1738267856180,-500.0,0.00019315,3]
[350987590,1738267856189,-500.0,0.00019315,3]
[350987591,1738267856200,-151.0,0.00019315,2]
[350987592,1738267856210,-754.79,0.00019315,3]
[350987593,1738267856220,-4345.76,0.00019315,3]
[350987594,1738267856231,-3180.72,0.00019315,3]
[350987595,1738267856242,-500.0,0.00019315,3]
[350987596,1738267856253,-500.0,0.00019315,3]
[350987597,1738267856264,-500.0,0.00019315,3]
[350987598,1738267856274,-1244.6,0.00019315,3]
[350987599,1738267856284,-3236.74,0.00019315,3]
[350987600,1738267856294,-500.0,0.00019315,3]
[350987601,1738267856304,-500.0,0.00019315,3]
[350987602,1738267856315,-247.77288,0.00019315,2]
[350987603,1738267856326,-593.36,0.00019315,3]
[350987604,1738267856336,-2919.61,0.00019315,3]
[350987605,1738267856346,-500.0,0.00019315,3]
[350987606,1738267856356,-500.0,0.00019315,3]
[350987607,1738267856367,-1352.78,0.00019315,3]
[350987608,1738267856377,-1058.46,0.00019315,3]
[350987609,1738267856388,-500.0,0.00019315,3]
[350987610,1738267856399,-1684.51,0.00019315,3]
[350987611,1738267856410,-500.0,0.00019315,3]
[350987612,1738267856420,-4025.36,0.00019315,3]
[350987613,1738267856430,-3446.7,0.00019315,3]
[350987614,1738267856440,-505.18094785,0.00019315,3]
[350987615,1738267856450,-2000.33,0.00019315,3]
[350987616,1738267856461,-500.0,0.00019315,3]
[350987617,1738267856471,-500.0,0.00019315,3]
[350987618,1738267856483,-2984.8,0.00019315,3]
[350987619,1738267856492,-500.0,0.00019315,3]
[350987620,1738267856503,-5505.11,0.00019315,3]
[350987621,1738267856514,-987.65,0.00019315,3]
[350987622,1738267856524,-969.05,0.00019315,3]
[350987623,1738267856534,-500.0,0.00019315,3]
[350987624,1738267856543,-151.0,0.00019315,2]
[350987625,1738267856553,-5570.79,0.00019315,3]
[350987626,1738267856562,-500.0,0.00019315,3]
[350987627,1738267856572,-8756.31,0.00019315,3]
[350987628,1738267856582,-3948.99,0.00019315,3]
[350987629,1738267856591,-500.0,0.00019315,3]
[350987630,1738267856602,-500.0,0.00019315,3]
[350987631,1738267856611,-500.0,0.00019315,3]
[350987632,1738267856621,-2961.39,0.00019315,3]
[350987633,1738267856631,-4011.89,0.00019315,3]
[350987634,1738267856641,-500.0,0.00019315,3]
[350987635,1738267856650,-151.0,0.00019315,2]
[350987636,1738267856660,-1059.51,0.00019315,3]
[350987637,1738267856671,-500.0,0.00019315,3]
[350987638,1738267856681,-508.00536858,0.00019315,3]
[350987639,1738267856691,-998.94,0.00019315,3]
[350987640,1738267856701,-1284.2,0.00019315,3]
[350987641,1738267856710,-22143.06,0.00019315,3]
[350987642,1738267856720,-2367.76,0.00019315,3]
[350987643,1738267856730,-500.0,0.00019315,3]
[350987644,1738267856744,-500.0,0.00019315,3]
[350987645,1738267856753,-500.0,0.00019315,3]
[350987646,1738267856763,-892.73,0.00019315,3]
[350987647,1738267856772,-1957.09,0.00019315,3]
[350987648,1738267856783,-500.0,0.00019315,3]
[350987649,1738267856793,-1115.81,0.00019315,3]
[350987650,1738267856802,-6406.14,0.00019315,3]
[350987651,1738267856812,-1922.35,0.00019315,3]
[350987652,1738267856822,-1173.58,0.00019315,3]
[350987653,1738267856832,-500.0,0.00019315,3]
[350987654,1738267856841,-151.55027186,0.00019315,3]
[350987655,1738267856850,-564.24885302,0.00019315,3]
[350987656,1738267856860,-500.0,0.00019315,3]
[350987657,1738267856870,-500.0,0.00019315,3]
[350987658,1738267856879,-512.22,0.00019315,3]
[350987659,1738267856888,-500.0,0.00019315,3]
[350987660,1738267856898,-1412.13,0.00019315,3]
[350987661,1738267856908,-2567.64,0.00019315,3]
[350987662,1738267856917,-2320.57,0.00019315,3]
[350987663,1738267856926,-525.61672624,0.00019315,3]
[350987664,1738267856936,-6682.87,0.00019315,3]
[350987665,1738267856945,-798.27,0.00019315,3]
[350987666,1738267856954,-500.0,0.00019315,3]
[350987667,1738267856964,-916.42,0.00019315,3]
[350987668,1738267856973,-500.0,0.00019315,3]
[350987669,1738267856982,-500.0,0.00019315,3]
[350987670,1738267856992,-2840.49,0.00019315,3]
[350987671,1738267857001,-12543.62,0.00019315,3]
[350987672,1738267857011,-500.0,0.00019315,3]
[350987673,1738267857020,-500.0,0.00019315,3]
[350987674,1738267857029,-896.54,0.00019315,3]
[350987675,1738267857039,-1144.74,0.00019315,3]
[350987676,1738267857048,-888.1,0.00019315,3]
[350987677,1738267857060,-1188.01,0.00019315,3]
[350987678,1738267857070,-5739.55,0.00019315,3]
[350987679,1738267857080,-500.0,0.00019315,3]
[350987680,1738267857089,-553.62,0.00019315,3]
[350987681,1738267857099,-500.0,0.00019315,3]
[350987682,1738267857108,-500.0,0.00019315,3]
[350987683,1738267857118,-500.0,0.00019315,3]
[350987684,1738267857127,-500.0,0.00019315,3]
[350987685,1738267857137,-796.18,0.00019315,3]
[350987686,1738267857146,-1205.06,0.00019315,3]
[350987687,1738267857155,-173.7641887,0.00019315,3]
[350987688,1738267857165,-1803.29,0.00019315,3]
[350987689,1738267857175,-412.90665816,0.00019315,3]
[350987690,1738267857184,-500.0,0.00019315,3]
[350987691,1738267857194,-3390.33,0.00019315,3]
[350987692,1738267857204,-3044.02,0.00019315,3]
[350987693,1738267857214,-1705.3,0.00019315,3]
[350987694,1738267857224,-544.68,0.00019315,3]
[350987695,1738267857453,-1625.7,0.00019315,3]
[350987696,1738267857465,-500.0,0.00019315,3]
[350987697,1738267857475,-500.0,0.00019315,3]
[350987698,1738267857485,-3138.14,0.00019315,3]
[350987699,1738267857496,-310.8919895,0.00019315,3]
[350987700,1738267857506,-1647.49,0.00019315,3]
[350987701,1738267857516,-500.0,0.00019315,3]
[350987702,1738267857526,-500.0,0.00019315,3]
[350987703,1738267857536,-500.0,0.00019315,3]
[350987704,1738267857545,-1872.19,0.00019315,3]
[350987705,1738267857556,-500.0,0.00019315,3]
[350987706,1738267857568,-686.5,0.00019315,3]
[350987707,1738267857578,-500.0,0.00019315,3]
[350987708,1738267857589,-500.0,0.00019315,3]
[350987709,1738267857599,-792.24,0.00019315,3]